bitfinex/quotes_SOLUSD_20250419
["timestamp","ask_amount","ask_price","bid_price","bid_amount"]
[1745060595147,4.53844942,138.99,138.98,134.93315964]
[1745060595943,4.53844942,138.99,138.98,136.37221561]
[1745060596157,4.53844942,138.99,138.98,110.37221561]
[1745060596866,0.03,138.99,138.98,110.37221561]
[1745060598060,0.03,139.0,138.99,18.64964886]
[1745060598362,0.03,139.0,138.99,26.43315964]
[1745060600373,0.03,139.0,138.99,27.87211208]
[1745060601970,0.03,139.0,138.99,41.91211208]
[1745060602171,0.03,139.0,138.99,124.41211208]
[1745060602671,49.33551078,139.1,139.02,26.0]
[1745060602869,49.33551078,139.1,139.06,7.78351078]
[1745060603072,49.33551078,139.1,139.05,7.78351078]
[1745060603280,7.78351078,139.09,139.05,7.78351078]
[1745060603452,7.78351078,139.08,139.03,7.78351078]
[1745060603765,6.5823,139.07,139.03,7.78351078]
[1745060604072,6.5823,139.07,139.02,26.0]
[1745060604073,11.08665543,139.07,139.04,7.78351078]
[1745060604465,7.19114051,139.06,139.03,7.78351078]
[1745060604868,7.22114051,139.06,139.03,7.78351078]
[1745060605174,4.50435543,139.05,139.03,7.78351078]
[1745060605677,7.19217491,139.04,139.03,7.78351078]
[1745060606170,11.69653034,139.04,139.02,33.78351078]
[1745060606856,11.69653034,139.04,139.02,26.0]
[1745060607047,11.69653034,139.04,139.03,7.78351078]
[1745060607253,7.19217491,139.04,139.03,7.78351078]
[1745060607668,7.19165767,139.05,139.03,7.78351078]
[1745060608672,25.17080186,139.05,139.02,7.78351078]
[1745060608863,32.95431264,139.05,139.0,7.78351078]
[1745060609783,7.19269222,139.03,139.0,7.78351078]
[1745060610683,7.78351078,139.01,138.97,82.5]
[1745060610866,4.50266173,139.0,138.97,26.0]
[1745060612171,11.69742394,138.99,138.97,26.0]
[1745060612372,11.69742394,138.99,138.95,7.78351078]
[1745060612682,11.69742394,138.99,138.96,26.0]
[1745060613383,11.69742394,138.99,138.96,33.78351078]
[1745060613684,7.19476221,138.99,138.97,26.0]
[1745060614383,7.1942446,139.0,138.97,26.0]
[1745060614766,7.1942446,139.0,138.97,33.78351078]
[1745060617375,7.1942446,139.0,138.99,7.78351078]
[1745060617875,7.19394461,139.01,138.99,33.78351078]
[1745060618175,7.19217491,139.04,139.0,7.78351078]
[1745060618366,7.19217491,139.04,139.01,7.78351078]
[1745060618767,4.49963979,139.03,139.01,7.78351078]
[1745060619793,4.49963979,139.02,139.01,7.78351078]
[1745060621691,7.19231826,139.04,139.01,7.78351078]
[1745060621893,7.19231826,139.04,139.02,7.78351078]
[1745060622087,7.19231826,139.04,139.03,7.78351078]
[1745060622489,7.1918962,139.05,139.03,7.78351078]
[1745060622889,4.50124538,139.04,139.02,26.0]
[1745060623195,4.50124538,139.04,139.03,7.78351078]
[1745060623499,4.50124538,139.04,139.0,90.28351078]
[1745060623685,13.82735616,139.04,138.99,21.80351078]
[1745060623991,6.04384538,139.04,139.0,7.78351078]
[1745060624383,4.50124538,139.03,139.0,7.78351078]
[1745060624995,7.19320961,139.02,139.0,7.78351078]
[1745060626193,7.19320961,139.02,138.99,21.80351078]
[1745060626695,7.19320961,139.02,138.99,7.78351078]
[1745060627094,7.19269222,139.03,138.99,7.78351078]
[1745060627398,4.50020335,139.02,138.99,7.78351078]
[1745060628594,4.50020335,139.01,138.99,7.78351078]
[1745060629093,4.50020335,139.01,139.0,26.43315964]
[1745060630073,7.19230659,139.04,139.0,27.87200856]
[1745060630272,7.19189903,139.05,139.03,7.78351078]
[1745060631298,7.22114051,139.06,139.03,7.78351078]
[1745060633600,15.00465129,139.06,139.01,7.78351078]
[1745060633895,32.98250257,139.06,139.01,7.78351078]
[1745060636697,25.19899179,139.06,139.02,7.78351078]
[1745060639393,51.19899179,139.06,139.02,7.78351078]
[1745060639776,51.19899179,139.06,139.01,1.43870046]
[1745060639777,0.03,139.06,139.01,1.43870046]
[1745060640084,0.03,139.06,139.03,7.78351078]
[1745060640901,0.03,139.06,139.04,7.78351078]
[1745060644809,0.03,139.06,139.05,7.78351078]
[1745060647504,0.03,139.06,139.05,27.87149117]
[1745060649901,0.03,139.06,139.05,33.60595228]
[1745060650099,0.03,139.06,139.05,26.43315964]
[1745060652011,0.03,139.06,139.05,7.78351078]
[1745060654502,0.03,139.06,139.01,82.5]
[1745060654691,7.81351078,139.06,139.02,7.78351078]
[1745060655297,7.22114051,139.06,139.03,7.78351078]
[1745060657709,7.22114051,139.06,139.05,7.78351078]
[1745060659199,11.72183227,139.06,139.05,7.78351078]
[1745060660111,11.72183227,139.06,139.04,7.78351078]
[1745060660516,4.50069176,139.05,139.04,7.78351078]
[1745060661807,0.03,139.06,139.04,7.78351078]
[1745060662111,0.03,139.06,139.05,7.78351078]
[1745060672129,0.03,139.06,139.05,108.93315964]
[1745060672314,0.03,139.06,139.05,110.37149117]
[1745060673334,7.2180391,139.12,139.05,110.37149117]
[1745060673527,7.2180391,139.12,139.09,7.78351078]
[1745060673710,4.51408728,139.11,139.09,7.78351078]
[1745060674530,4.51408728,139.11,139.1,7.78351078]
[1745060674820,11.70264309,139.11,139.09,7.78351078]
[1745060675026,4.51408728,139.1,139.09,7.78351078]
[1745060675725,4.51408728,139.1,139.06,7.78351078]
[1745060675924,4.51408728,139.1,139.07,7.78351078]
[1745060676129,4.51408728,139.09,139.07,7.78351078]
[1745060676517,11.70394336,139.09,139.07,7.78351078]
[1745060676722,11.70394336,139.09,139.08,7.78351078]
[1745060678710,11.70394336,139.09,139.07,7.78351078]
[1745060679328,4.51408728,139.08,139.07,7.78351078]
[1745060680936,11.70419369,139.08,139.07,7.78351078]
[1745060687242,4.51408728,139.08,139.07,7.78351078]
[1745060694546,4.51408728,139.08,139.07,52.43315964]
[1745060694953,7.18877505,139.11,139.07,52.43315964]
[1745060695248,7.18877505,139.11,139.1,7.78351078]
[1745060696148,11.70069333,139.11,139.1,7.78351078]
[1745060701150,11.70047409,139.11,139.1,7.78351078]
[1745060709258,11.70047409,139.11,139.09,7.78351078]
[1745060709754,4.51191828,139.1,139.09,7.78351078]
[1745060710364,19.48454985,139.1,139.06,82.5]
[1745060710662,4.51191828,139.09,139.06,26.0]
[1745060710850,4.51191828,139.09,139.06,7.78351078]
[1745060711051,4.51191828,139.09,139.08,7.78351078]
[1745060713055,11.70150775,139.09,139.08,7.78351078]
[1745060714258,4.51191828,139.09,139.08,7.78351078]
[1745060715669,11.70150775,139.09,139.06,18.64964886]
[1745060716162,4.51191828,139.08,139.06,7.78351078]
[1745060716463,4.51191828,139.08,139.07,7.78351078]
[1745060718264,4.51191828,139.08,139.07,26.43315964]
[1745060719356,7.18924475,139.1,139.07,26.43315964]
[1745060719672,7.18924475,139.1,139.09,7.78351078]
[1745060719874,11.70430682,139.1,139.09,7.78351078]
[1745060721078,4.51506207,139.1,139.09,7.78351078]
[1745060722080,4.51506207,139.1,139.09,26.43315964]
[1745060722674,0.03,139.12,139.09,26.43315964]
[1745060722975,0.03,139.12,139.11,7.78351078]
[1745060723874,4.53989344,139.12,139.11,7.78351078]
[1745060731358,11.72800886,139.12,139.09,101.14964886]
[1745060731563,11.72800886,139.12,139.11,7.78351078]
[1745060733381,4.53989344,139.12,139.11,7.78351078]
[1745060734189,0.03,139.12,139.11,7.78351078]
[1745060735906,0.03,139.12,139.11,33.78351078]
[1745060741068,0.03,139.12,139.11,52.43315964]
[1745060747599,0.03,139.14,139.12,18.64964886]
[1745060747898,0.03,139.14,139.13,26.43315964]
[1745060748108,0.03,139.16,139.15,52.43315964]
[1745060753100,7.18339199,139.21,139.19,26.0]
[1745060753292,7.18339199,139.21,139.2,7.78351078]
[1745060753792,11.67299642,139.21,139.2,7.78351078]
[1745060754803,4.48960443,139.21,139.2,26.43315964]
[1745060755005,7.18184429,139.24,139.21,18.64964886]
[1745060755187,7.18184429,139.24,139.23,7.78351078]
[1745060756101,7.21132854,139.25,139.23,7.78351078]
[1745060758511,7.21132854,139.25,139.24,7.78351078]
[1745060759981,0.03,139.25,139.24,7.78351078]
[1745060762310,0.03,139.25,139.23,7.78351078]
[1745060762616,14.38151078,139.25,139.2,90.28351078]
[1745060762918,14.38151078,139.25,139.2,7.78351078]
[1745060763111,7.78351078,139.23,139.17,115.14964886]
[1745060763410,7.78351078,139.22,139.18,7.78351078]
[1745060764116,7.78351078,139.23,139.18,7.78351078]
[1745060764302,7.78351078,139.22,139.18,7.78351078]
[1745060764615,7.18339199,139.21,139.18,7.78351078]
[1745060767619,7.78351078,139.2,139.15,90.28351078]
[1745060767830,7.78351078,139.2,139.15,7.78351078]
[1745060768905,7.78351078,139.21,139.16,7.78351078]
[1745060770018,7.18390804,139.2,139.17,7.78351078]
[1745060770817,32.92718893,139.2,139.16,7.78351078]
[1745060771206,32.92718893,139.2,139.14,26.0]
[1745060771207,34.43618893,139.2,139.14,26.0]
[1745060771417,7.78351078,139.19,139.15,7.78351078]
[1745060771804,34.43618893,139.2,139.15,7.78351078]
[1745060772510,34.43618893,139.2,139.16,7.78351078]
[1745060775719,34.43618893,139.2,139.15,7.78351078]
[1745060775933,7.78351078,139.19,139.14,33.78351078]
[1745060777129,7.18494036,139.18,139.14,33.78351078]
[1745060777438,25.14729127,139.18,139.15,7.78351078]
[1745060779328,17.96235091,139.18,139.15,7.78351078]
[1745060783735,25.14729127,139.18,139.15,7.78351078]
[1745060785152,7.78351078,139.17,139.13,7.78351078]
[1745060785311,32.93080205,139.18,139.11,82.5]
[1745060785510,32.93080205,139.18,139.14,7.78351078]
[1745060787319,32.93080205,139.18,139.13,7.78351078]
[1745060788026,7.78351078,139.17,139.13,7.78351078]
[1745060790036,7.18442416,139.19,139.16,7.78351078]
[1745060790214,7.18442416,139.19,139.18,7.78351078]
[1745060790534,7.18442416,139.19,139.17,7.78351078]
[1745060794848,7.18442416,139.19,139.14,2.87464335]
[1745060794849,7.18442416,139.19,139.18,7.78351078]
[1745060795345,7.18442416,139.19,139.17,7.78351078]
[1745060796552,35.18410697,139.2,139.18,7.78351078]
[1745060798041,9.18410697,139.2,139.18,7.78351078]
[1745060798246,9.18410697,139.2,139.19,7.78351078]
[1745060798652,2.0,139.2,139.19,7.78351078]
[1745060810351,7.18295701,139.22,139.19,7.78351078]
[1745060810527,7.18295701,139.22,139.21,7.78351078]
[1745060811455,7.18184429,139.24,139.21,7.78351078]
[1745060812252,26.03,139.25,139.22,7.78351078]
[1745060812253,7.21151006,139.25,139.22,7.78351078]
[1745060812442,7.21151006,139.25,139.23,7.78351078]
[1745060813463,0.03,139.25,139.23,7.78351078]
[1745060814729,0.03,139.25,139.22,7.78351078]
[1745060815755,0.03,139.25,139.21,7.78351078]
[1745060815951,7.81351078,139.25,139.21,7.78351078]
[1745060816153,7.81351078,139.25,139.2,26.43315964]
[1745060816655,7.78351078,139.23,139.19,21.78351078]
[1745060817162,7.78351078,139.24,139.19,21.78351078]
[1745060818145,7.18236012,139.23,139.2,7.78351078]
[1745060818340,7.18236012,139.23,139.21,7.78351078]
[1745060818839,7.18197225,139.24,139.22,7.78351078]
[1745060819252,7.18197225,139.24,139.21,7.78351078]
[1745060819476,4.51911745,139.23,139.22,18.64964886]
[1745060819765,0.03,139.25,139.22,26.43315964]
[1745060819942,0.03,139.25,139.24,26.43315964]
[1745060820262,0.03,139.25,139.24,28.58771292]
[1745060821168,0.03,139.25,139.24,111.08771292]
[1745060821863,0.03,139.25,139.24,114.6778886]
[1745060822168,0.03,139.28,139.27,44.64964886]
[1745060822333,11.17820188,139.38,139.27,44.64964886]
[1745060822334,7.17514529,139.37,139.3,18.64964886]
[1745060822538,7.17514529,139.37,139.33,7.78351078]
[1745060822766,7.17514529,139.37,139.34,7.78351078]
[1745060824366,6.67514529,139.37,139.34,7.78351078]
[1745060825080,32.39651931,139.37,139.33,7.78351078]
[1745060825756,32.39651931,139.37,139.3,44.64964886]
[1745060825757,32.39651931,139.37,139.32,7.78351078]
[1745060825970,7.78351078,139.36,139.32,7.78351078]
[1745060826168,7.78351078,139.35,139.31,7.78351078]
[1745060826472,7.78351078,139.36,139.31,7.78351078]
[1745060826765,24.61300853,139.37,139.32,7.78351078]
[1745060826967,32.39651931,139.37,139.32,7.78351078]
[1745060827745,7.78351078,139.33,139.27,18.64964886]
[1745060828051,7.78351078,139.34,139.29,7.78351078]
[1745060828948,7.78351078,139.35,139.31,7.78351078]
[1745060829150,7.78351078,139.36,139.31,7.78351078]
[1745060829672,7.17617509,139.35,139.31,7.78351078]
[1745060830546,14.95968587,139.35,139.31,7.78351078]
[1745060832467,7.78351078,139.36,139.31,7.78351078]
[1745060832651,25.11300853,139.37,139.32,7.78351078]
[1745060832652,32.89651931,139.37,139.32,7.78351078]
[1745060833873,7.17617509,139.35,139.32,7.78351078]
[1745060835981,7.17566016,139.36,139.32,7.78351078]
[1745060841075,7.17566016,139.36,139.34,7.78351078]
[1745060841378,7.17566016,139.36,139.32,26.43315964]
[1745060841562,14.95917094,139.36,139.32,26.43315964]
[1745060841764,7.17566016,139.36,139.32,26.43315964]
[1745060842063,14.95917094,139.36,139.32,26.43315964]
[1745060842263,7.78351078,139.35,139.31,7.78351078]
[1745060843056,7.17669011,139.34,139.31,7.78351078]
[1745060845778,7.17669011,139.34,139.32,7.78351078]
[1745060847582,7.17617509,139.35,139.3,18.64964886]
[1745060847762,7.17617509,139.35,139.31,7.78351078]
[1745060848175,7.17617509,139.35,139.32,7.78351078]
[1745060851884,7.17617509,139.35,139.3,18.64964886]
[1745060852182,7.17617509,139.35,139.32,7.78351078]
[1745060852983,25.72394852,139.35,139.31,7.78351078]
[1745060853479,17.94043774,139.35,139.31,7.78351078]
[1745060854874,32.90012361,139.35,139.31,7.78351078]
[1745060856279,32.90012361,139.35,139.3,7.78351078]
[1745060856485,7.78351078,139.34,139.3,7.78351078]
[1745060856999,7.78351078,139.34,139.29,33.78351078]
[1745060857165,32.90012361,139.35,139.3,7.78351078]
[1745060861186,7.78351078,139.32,139.26,26.063]
[1745060861487,7.78351078,139.32,139.27,7.78351078]
[1745060862280,7.78351078,139.31,139.26,7.84651078]
[1745060862972,25.12408892,139.31,139.27,7.78351078]
[1745060863173,25.12408892,139.31,139.26,7.84651078]
[1745060863987,32.9075997,139.31,139.26,7.84651078]
[1745060864190,25.12408892,139.31,139.26,7.84651078]
[1745060864486,32.9075997,139.31,139.26,7.84651078]
[1745060866283,7.78351078,139.3,139.26,0.063]
[1745060867282,7.17926627,139.29,139.26,0.063]
[1745060869977,7.17926627,139.29,139.27,7.78351078]
[1745060870477,7.17926627,139.29,139.26,7.84651078]
[1745060871008,7.17926627,139.29,139.26,0.063]
[1745060872489,7.17926627,139.29,139.26,7.84651078]
[1745060874494,25.12663646,139.3,139.26,7.84651078]
[1745060877098,7.78351078,139.3,139.26,7.84651078]
[1745060879301,7.17875089,139.3,139.26,7.84651078]
[1745060882002,25.12202124,139.32,139.26,7.84651078]
[1745060882202,32.90553202,139.32,139.27,7.78351078]
[1745060883301,7.17875089,139.3,139.27,7.78351078]
[1745060883994,7.17875089,139.3,139.26,7.84651078]
[1745060884302,14.96226167,139.3,139.26,7.84651078]
[1745060887005,7.78351078,139.29,139.26,0.063]
[1745060887187,7.78351078,139.27,139.26,0.063]
[1745060887988,14.96380804,139.27,139.26,1e-08]
[1745060888403,40.96380804,139.27,139.26,1e-08]
[1745060892015,14.96380804,139.27,139.26,1e-08]
[1745060898717,26.0,139.24,139.23,1e-08]
[1745060899016,33.78351078,139.24,139.23,1e-08]
[1745060900904,40.96535507,139.24,139.23,1e-08]
[1745060904801,94.82918729,139.24,139.18,0.063]
[1745060905008,7.78351078,139.19,139.18,0.063]
[1745060905218,7.78351078,139.19,139.18,1e-08]
[1745060906815,26.0,139.16,139.15,1e-08]
[1745060907016,33.78351078,139.16,139.15,1e-08]
[1745060909028,40.96948376,139.16,139.15,1e-08]
[1745060912034,14.96948376,139.16,139.15,1e-08]
[1745060912202,7.18597298,139.16,139.15,1e-08]
[1745060912505,14.96948376,139.16,139.15,1e-08]
[1745060917435,7.18597298,139.16,139.15,1e-08]
[1745060917819,14.96948376,139.16,139.15,1e-08]
[1745060928445,7.18597298,139.16,139.15,1e-08]
[1745060928945,7.78351078,139.17,139.15,1e-08]
[1745060928946,7.18545663,139.17,139.15,1e-08]
[1745060929440,7.78351078,139.16,139.15,1e-08]
[1745060930048,7.18545663,139.17,139.15,1e-08]
[1745060930348,14.96896741,139.17,139.15,1e-08]
[1745060930530,7.78351078,139.16,139.15,1e-08]
[1745060931247,14.96948376,139.16,139.15,1e-08]
[1745060931839,7.18597298,139.16,139.15,1e-08]
[1745060933245,7.18545663,139.17,139.15,1e-08]
[1745060937843,7.78351078,139.18,139.15,1e-08]
[1745060938025,7.18467668,139.19,139.16,7.78351078]
[1745060938225,7.18339199,139.21,139.18,7.78351078]
[1745060939136,7.18339199,139.21,139.17,7.78351078]
[1745060939654,7.18287602,139.22,139.18,7.78351078]
[1745060940541,7.1825597,139.23,139.2,7.78351078]
[1745060940744,7.1825597,139.23,139.21,7.78351078]
[1745060940953,7.1825597,139.23,139.2,7.78351078]
[1745060942837,7.1825597,139.23,139.19,7.78351078]
[1745060944932,7.1825597,139.23,139.2,7.78351078]
[1745060946536,7.1825597,139.23,139.19,7.78351078]
[1745060951859,7.81351078,139.24,139.19,7.78351078]
[1745060952160,7.81351078,139.24,139.2,7.78351078]
[1745060953861,7.18236012,139.23,139.2,7.78351078]
[1745060954355,7.18236012,139.23,139.19,26.43315964]
[1745060957969,7.18236012,139.23,139.2,7.78351078]
[1745060958137,7.18236012,139.23,139.21,7.78351078]
[1745060958346,0.03,139.24,139.22,7.78351078]
[1745060958545,0.03,139.24,139.23,7.78351078]
[1745060958946,0.03,139.24,139.22,33.78351078]
[1745060959244,7.81351078,139.24,139.2,26.0]
[1745060960161,7.81351078,139.24,139.2,33.78351078]
[1745060960555,7.18236012,139.23,139.2,33.78351078]
[1745060962256,14.9658709,139.23,139.19,18.64964886]
[1745060962752,7.78351078,139.22,139.18,33.78351078]
[1745060963066,7.78351078,139.21,139.17,7.78351078]
[1745060963649,26.66706042,139.23,139.17,7.78351078]
[1745060963958,7.78351078,139.21,139.16,44.64964886]
[1745060964143,7.78351078,139.19,139.15,7.78351079]
[1745060964350,7.78351078,139.17,139.15,1e-08]
[1745060964753,7.18597298,139.16,139.15,1e-08]
[1745060967768,14.96948376,139.16,139.15,1e-08]
[1745060983376,101.51392997,139.16,139.09,0.063]
[1745060983680,7.78351078,139.1,139.09,0.063]
[1745060984566,14.97258338,139.1,139.09,0.063]
[1745060986648,7.1890726,139.1,139.09,0.063]
[1745060988876,14.97258338,139.1,139.09,0.063]
[1745060992656,7.1890726,139.1,139.09,0.063]
[1745060996176,14.97258338,139.1,139.09,0.063]
[1745060999163,7.1890726,139.1,139.09,0.063]
[1745061003183,7.18855581,139.11,139.09,0.063]
[1745061004188,7.18855581,139.11,139.09,7.84651078]
[1745061004374,7.18648939,139.15,139.11,18.64964886]
[1745061004573,7.18648939,139.15,139.13,7.78351078]
[1745061005082,7.78351078,139.17,139.13,7.78351078]
[1745061005381,32.93106755,139.18,139.14,7.78351078]
[1745061005586,7.18494036,139.18,139.15,7.78351078]
[1745061006381,7.18494036,139.18,139.16,7.78351078]
[1745061006574,17.95990088,139.2,139.17,7.78351078]
[1745061006575,7.18390804,139.2,139.17,7.78351078]
[1745061008389,7.81351078,139.21,139.17,7.78351078]
[1745061008683,7.81351078,139.21,139.16,7.78351078]
[1745061008875,7.78351078,139.17,139.13,33.78351078]
[1745061009587,7.78351078,139.18,139.13,33.78351078]
[1745061010484,14.96896741,139.17,139.13,26.0]
[1745061010681,14.96896741,139.17,139.1,7.9618]
[1745061010682,7.78351078,139.16,139.11,26.43315964]
[1745061011698,7.18648939,139.15,139.11,26.43315964]
[1745061011998,7.18648939,139.15,139.1,33.78351078]
[1745061011999,32.93622366,139.15,139.1,33.78351078]
[1745061012382,32.93622366,139.15,139.11,7.78351078]
[1745061015373,7.18648939,139.15,139.13,7.78351078]
[1745061015781,7.18648939,139.15,139.12,7.78351078]
[1745061016197,7.18597298,139.16,139.12,7.78351078]
[1745061016697,14.96948376,139.16,139.12,7.78351078]
[1745061016879,14.96948376,139.16,139.11,7.78351078]
[1745061016880,7.78351078,139.15,139.11,7.78351078]
[1745061017289,32.93441621,139.16,139.12,7.78351078]
[1745061019905,25.15090543,139.16,139.12,7.78351078]
[1745061020398,32.93441621,139.16,139.12,7.78351078]
[1745061025001,25.15090543,139.16,139.12,7.78351078]
[1745061029898,7.18597298,139.16,139.14,7.78351078]
[1745061030892,17.96254078,139.18,139.15,7.78351078]
[1745061030893,7.18494036,139.18,139.15,7.78351078]
[1745061031092,7.18390804,139.2,139.17,7.78351078]
[1745061031511,7.18390804,139.2,139.16,7.78351078]
[1745061042811,14.96741882,139.2,139.16,7.78351078]
[1745061044113,7.18390804,139.2,139.16,7.78351078]
[1745061048010,7.18390804,139.2,139.17,7.78351078]
[1745061049709,7.18390804,139.2,139.16,7.78351078]
[1745061050902,14.96741882,139.2,139.16,7.78351078]
[1745061052219,14.96741882,139.2,139.15,18.64964886]
[1745061052421,14.96741882,139.2,139.16,7.78351078]
[1745061054302,14.96741882,139.2,139.15,26.43315964]
[1745061058605,32.92718893,139.2,139.15,26.43315964]
[1745061058929,32.92718893,139.2,139.16,7.78351078]
[1745061060803,7.78351078,139.19,139.14,7.78351078]
[1745061062230,7.78351078,139.18,139.14,7.78351078]
[1745061062832,7.18545663,139.17,139.14,7.78351078]
[1745061063208,7.78351078,139.16,139.12,7.78351078]
[1745061063422,7.78351078,139.16,139.11,21.78351078]
[1745061064211,7.18648939,139.15,139.11,21.78351078]
[1745061065233,7.18648939,139.15,139.12,7.78351078]
[1745061066237,7.18648939,139.15,139.11,7.78351078]
[1745061066532,7.18648939,139.15,139.12,7.78351078]
[1745061066732,7.18648939,139.15,139.14,7.78351078]
[1745061067519,17.9626472,139.18,139.14,7.78351078]
[1745061067520,25.14758756,139.18,139.14,7.78351078]
[1745061068310,7.78351078,139.17,139.13,7.78351078]
[1745061069431,7.18597298,139.16,139.13,7.78351078]
[1745061074836,32.93109834,139.18,139.13,7.78351078]
[1745061077037,25.14758756,139.18,139.14,7.78351078]
[1745061077232,7.18494036,139.18,139.15,7.78351078]
[1745061080142,14.96845114,139.18,139.14,7.78351078]
[1745061080344,32.93080205,139.18,139.13,33.78351078]
[1745061080944,32.93080205,139.18,139.14,7.78351078]
[1745061082440,7.18494036,139.18,139.15,7.78351078]
[1745061083337,7.18494036,139.18,139.16,7.78351078]
[1745061084850,7.18442416,139.19,139.16,7.78351078]
[1745061087844,7.18442416,139.19,139.17,7.78351078]
[1745061088943,7.18390804,139.2,139.17,7.78351078]
[1745061089448,7.18390804,139.2,139.16,33.78351078]
[1745061090954,32.92718893,139.2,139.16,26.0]
[1745061091128,7.78351078,139.19,139.16,26.0]
[1745061092646,32.92718893,139.2,139.16,26.0]
[1745061093026,7.78351078,139.19,139.16,26.0]
[1745061093229,32.92718893,139.2,139.16,26.0]
[1745061093834,7.18390804,139.2,139.17,7.78351078]
[1745061096349,7.21339199,139.21,139.17,7.78351078]
[1745061097352,25.17187198,139.21,139.17,7.78351078]
[1745061099259,32.95538276,139.21,139.16,33.78351078]
[1745061099465,7.78351078,139.2,139.16,26.0]
[1745061100149,32.95538276,139.21,139.16,33.78351078]
[1745061100458,7.78351078,139.2,139.15,7.78351078]
[1745061101157,7.18442416,139.19,139.15,7.78351078]
[1745061101360,25.14548458,139.19,139.15,7.78351078]
[1745061103552,32.92899536,139.19,139.14,33.78351078]
[1745061103759,32.92899536,139.19,139.15,26.0]
[1745061104260,32.92899536,139.19,139.14,7.78351078]
[1745061104438,7.78351078,139.18,139.13,33.78351078]
[1745061105441,14.96896741,139.17,139.12,7.78351078]
[1745061105642,7.78351078,139.16,139.11,47.78351078]
[1745061107259,7.78351078,139.16,139.12,7.78351078]
[1745061108353,7.18648939,139.15,139.12,7.78351078]
[1745061109943,7.18648939,139.15,139.13,7.78351078]
[1745061110964,7.18545663,139.17,139.14,7.78351078]
[1745061111142,7.18545663,139.17,139.16,7.78351078]
[1745061111534,17.96119531,139.19,139.16,7.78351078]
[1745061122370,25.14561947,139.19,139.16,7.78351078]
[1745061141965,25.14561947,139.19,139.15,33.78351078]
[1745061142690,25.14561947,139.19,139.16,7.78351078]
[1745061143177,25.14561947,139.19,139.15,26.0]
[1745061143374,7.78351078,139.18,139.15,26.0]
[1745061143580,7.78351078,139.17,139.13,7.78351078]
[1745061144590,7.18597298,139.16,139.12,52.43315964]
[1745061145185,7.18597298,139.16,139.12,33.78351078]
[1745061145386,32.93441621,139.16,139.12,33.78351078]
[1745061145993,4.72979328,139.15,139.12,33.78351078]
[1745061146386,4.72979328,139.15,139.13,7.78351078]
[1745061146694,7.18700589,139.14,139.13,7.78351078]
[1745061146990,11.91679917,139.14,139.13,7.78351078]
[1745061152092,0.03,139.21,139.17,26.0]
[1745061152296,0.03,139.21,139.2,52.43315964]
[1745061152594,0.03,139.21,139.2,64.38296765]
[1745061153782,0.03,139.21,139.2,70.04696936]
[1745061154386,0.03,139.21,139.2,72.20214177]
[1745061154570,0.03,139.21,139.2,103.33618489]
[1745061155179,0.03,139.21,139.2,97.67218318]
[1745061161208,0.03,139.21,139.2,66.53814006]
[1745061163194,0.03,139.21,139.2,52.43315964]
[1745061163498,0.03,139.21,139.2,33.78351078]
[1745061164395,0.03,139.21,139.19,7.78351078]
[1745061165189,7.21339199,139.21,139.18,7.78351078]
[1745061167213,7.21339199,139.21,139.17,7.78351078]
[1745061167783,32.95538276,139.21,139.16,13.98]
[1745061168011,7.78351078,139.2,139.16,7.78351078]
[1745061168196,7.78351078,139.2,139.14,58.62964886]
[1745061168400,7.78351078,139.2,139.16,7.78351078]
[1745061168803,7.18442416,139.19,139.15,7.78351078]
[1745061170202,7.18412776,139.2,139.17,7.78351078]
[1745061170409,1.6059,139.21,139.19,7.78351078]
[1745061170410,0.03,139.21,139.19,7.78351078]
[1745061170594,0.03,139.21,139.2,7.78351078]
[1745061171002,7.21352613,139.21,139.19,7.78351078]
[1745061172320,0.03,139.21,139.19,7.78351078]
[1745061174213,0.03,139.21,139.2,7.78351078]
[1745061180938,0.03,139.21,139.19,26.0]
[1745061181236,0.03,139.21,139.19,33.78351078]
[1745061185309,0.03,139.21,139.2,7.78351078]
[1745061186428,0.03,139.21,139.2,26.43315964]
[1745061186636,0.03,139.21,139.2,57.56720276]
[1745061186812,0.03,139.21,139.2,26.43315964]
[1745061194845,0.03,139.21,139.2,7.78351078]
[1745061195031,0.03,139.21,139.16,32.62964886]
[1745061195236,0.03,139.21,139.17,7.78351078]
[1745061195941,7.81351078,139.21,139.16,47.76351078]
[1745061196139,7.78351078,139.17,139.09,0.063]
[1745061196441,7.78351078,139.16,139.12,26.0]
[1745061196642,7.78351078,139.14,139.1,21.76351078]
[1745061196821,7.78351078,139.14,139.1,47.76351078]
[1745061197017,7.18700589,139.14,139.1,47.76351078]
[1745061198421,32.9380314,139.14,139.1,47.76351078]
[1745061198750,32.9380314,139.14,139.1,33.78351078]
[1745061199037,7.18545663,139.17,139.14,26.0]
[1745061199237,7.18545663,139.17,139.16,7.78351078]
[1745061199431,1.5948,139.2,139.16,7.78351078]